[Event "*** Titled Tuesday Blitz"]
[Site "Chess.com"]
[Date "2019.02.05"]
[Round "5"]
[White "Zq1"]
[Black "StanislavNovikov"]
[Result "0-1"]
[WhiteElo "2518"]
[BlackElo "2675"]
[TimeControl "180+2"]
[EndTime "14:07:49 PST"]
[Termination "StanislavNovikov won by resignation"]

1. d4 {[%clk 0:03:01.9]} 1... g6 {[%clk 0:03:00.3]} 2. c4 {[%clk 0:03:01.5]}
2... Bg7 {[%clk 0:03:01.2]} 3. e4 {[%clk 0:03:02.6]} 3... d6 {[%clk 0:03:02.3]}
4. Nc3 {[%clk 0:03:02.8]} 4... Nf6 {[%clk 0:03:03]} 5. Nf3 {[%clk 0:03:03.2]}
5... O-O {[%clk 0:03:04]} 6. Be2 {[%clk 0:03:04.3]} 6... Na6 {[%clk 0:03:04.5]}
7. O-O {[%clk 0:03:04.9]} 7... e5 {[%clk 0:03:05.5]} 8. Re1 {[%clk 0:03:06]}
8... c6 {[%clk 0:02:59.4]} 9. Rb1 {[%clk 0:03:06.5]} 9... exd4 {[%clk
0:02:54.2]} 10. Nxd4 {[%clk 0:03:06.9]} 10... Nc5 {[%clk 0:02:55.3]} 11. f3
{[%clk 0:03:06.5]} 11... a5 {[%clk 0:02:55.6]} 12. Be3 {[%clk 0:03:06.7]} 12...
Re8 {[%clk 0:02:54.2]} 13. Qd2 {[%clk 0:03:07]} 13... a4 {[%clk 0:02:47.7]} 14.
Bf1 {[%clk 0:03:06.8]} 14... Qa5 {[%clk 0:02:46.8]} 15. Nc2 {[%clk 0:02:54.7]}
15... Bf8 {[%clk 0:02:32.3]} 16. Bd4 {[%clk 0:02:54.7]} 16... Nfd7 {[%clk
0:02:30.7]} 17. Rbd1 {[%clk 0:02:50.2]} 17... Ne6 {[%clk 0:02:02.4]} 18. Bf2
{[%clk 0:02:36.4]} 18... Ne5 {[%clk 0:02:00.8]} 19. h3 {[%clk 0:02:30.4]} 19...
Nc5 {[%clk 0:01:36.9]} 20. Ne3 {[%clk 0:02:20]} 20... a3 {[%clk 0:01:19.7]} 21.
b3 {[%clk 0:02:04]} 21... Bg7 {[%clk 0:01:07.6]} 22. Rb1 {[%clk 0:01:59.9]}
22... Nxf3+ {[%clk 0:01:02.9]} 23. gxf3 {[%clk 0:01:58.8]} 23... Bxc3 {[%clk
0:01:03.8]} 24. Qxd6 {[%clk 0:01:59.1]} 24... Be5 {[%clk 0:00:52.4]} 25. Qd1
{[%clk 0:01:47.3]} 25... Qc7 {[%clk 0:00:49.8]} 26. Ng4 {[%clk 0:01:46.8]} 26...
Bxg4 {[%clk 0:00:47.1]} 27. hxg4 {[%clk 0:01:44.7]} 27... Rad8 {[%clk
0:00:41.2]} 28. Qc1 {[%clk 0:01:45.5]} 28... Bd4 {[%clk 0:00:36.6]} 29. Bxd4
{[%clk 0:00:52.1]} 29... Qg3+ {[%clk 0:00:35.7]} 30. Bg2 {[%clk 0:00:53.2]}
30... Rxd4 {[%clk 0:00:37.3]} 31. Qc2 {[%clk 0:00:46]} 31... Nd3 {[%clk
0:00:33.5]} 32. Red1 {[%clk 0:00:41.5]} 32... Red8 {[%clk 0:00:33.7]} 33. Kf1
{[%clk 0:00:34.2]} 33... Nf4 {[%clk 0:00:23.5]} 34. Rxd4 {[%clk 0:00:28.8]}
34... Rxd4 {[%clk 0:00:25.4]} 35. b4 {[%clk 0:00:23]} 35... Rd3 {[%clk
0:00:19.1]} 36. Re1 {[%clk 0:00:16.9]} 36... Nxg2 {[%clk 0:00:17.5]} 37. Qxd3
{[%clk 0:00:14.2]} 37... Nxe1 {[%clk 0:00:16.7]} 38. Qd8+ {[%clk 0:00:12.4]}
38... Kg7 {[%clk 0:00:18]} 39. Qd3 {[%clk 0:00:13.2]} 39... f6 {[%clk
0:00:09.8]} 40. Qd7+ {[%clk 0:00:12.8]} 40... Kh6 {[%clk 0:00:10.7]} 41. Qd2+
{[%clk 0:00:13.8]} 41... g5 {[%clk 0:00:11.9]} 42. Qxe1 {[%clk 0:00:14.8]} 42...
Qxf3+ {[%clk 0:00:13]} 43. Kg1 {[%clk 0:00:16]} 43... Qxg4+ {[%clk 0:00:14]} 44.
Kf1 {[%clk 0:00:16.6]} 44... Qf3+ {[%clk 0:00:14.7]} 45. Kg1 {[%clk 0:00:17.8]}
45... g4 {[%clk 0:00:12.3]} 46. e5 {[%clk 0:00:16.8]} 46... fxe5 {[%clk
0:00:10.4]} 47. Qxe5 {[%clk 0:00:16.9]} 47... g3 {[%clk 0:00:09.8]} 48. Qe6+
{[%clk 0:00:15.4]} 48... Kg5 {[%clk 0:00:10.7]} 49. Qe5+ {[%clk 0:00:16.4]}
49... Kg4 {[%clk 0:00:08.9]} 50. Qe6+ {[%clk 0:00:17]} 50... Kf4 {[%clk
0:00:08.6]} 51. Qd6+ {[%clk 0:00:16]} 51... Ke4 {[%clk 0:00:08.2]} 52. Qe7+
{[%clk 0:00:16]} 52... Kd3 {[%clk 0:00:08.4]} 53. Qxh7+ {[%clk 0:00:16.7]} 53...
Kc3 {[%clk 0:00:04.3]} 54. Qg7+ {[%clk 0:00:16.9]} 54... Kc2 {[%clk 0:00:04.9]}
55. Qg6+ {[%clk 0:00:17.2]} 55... Kb2 {[%clk 0:00:05.9]} 56. Qg7+ {[%clk
0:00:17.7]} 56... Kxa2 {[%clk 0:00:06.9]} 0-1

[Event "*** Titled Tuesday Blitz"]
[Site "Chess.com"]
[Date "2019.02.05"]
[Round "5"]
[White "aa175"]
[Black "Andrew-FB00"]
[Result "0-1"]
[WhiteElo "1920"]
[BlackElo "1882"]
[TimeControl "180+2"]
[EndTime "14:07:50 PST"]
[Termination "Andrew-FB00 won by checkmate"]

1. a3 {[%clk 0:03:01.9]} 1... e5 {[%clk 0:02:59.2]} 2. c4 {[%clk 0:02:59]} 2...
Nc6 {[%clk 0:02:51.8]} 3. e3 {[%clk 0:02:56.5]} 3... d5 {[%clk 0:02:51.6]} 4.
cxd5 {[%clk 0:02:57]} 4... Qxd5 {[%clk 0:02:52.4]} 5. Nc3 {[%clk 0:02:58.9]}
5... Qd6 {[%clk 0:02:47.8]} 6. Nf3 {[%clk 0:02:59.2]} 6... Nf6 {[%clk
0:02:47.9]} 7. Bc4 {[%clk 0:02:58.7]} 7... Bg4 {[%clk 0:02:47.7]} 8. Qb3 {[%clk
0:02:55.2]} 8... O-O-O {[%clk 0:02:18.7]} 9. Nb5 {[%clk 0:02:50.6]} 9... Qd7
{[%clk 0:02:08.3]} 10. Nxe5 {[%clk 0:02:48.5]} 10... Nxe5 {[%clk 0:01:59.8]} 11.
Nxa7+ {[%clk 0:02:41.8]} 11... Kb8 {[%clk 0:02:00.3]} 12. Ba6 {[%clk 0:02:41.5]}
12... c6 {[%clk 0:01:37.6]} 13. f3 {[%clk 0:02:28.6]} 13... Kxa7 {[%clk
0:01:16.2]} 14. fxg4 {[%clk 0:02:19.2]} 14... Kxa6 {[%clk 0:01:13.1]} 15. d4
{[%clk 0:02:17.7]} 15... Nexg4 {[%clk 0:01:10.1]} 16. Bd2 {[%clk 0:02:18.7]}
16... Ka7 {[%clk 0:00:58]} 17. Ba5 {[%clk 0:02:18.6]} 17... Re8 {[%clk
0:00:50.5]} 18. Bb6+ {[%clk 0:02:08.6]} 18... Kb8 {[%clk 0:00:50.6]} 19. Qa4
{[%clk 0:02:09.4]} 19... Rxe3+ {[%clk 0:00:50.1]} 20. Kd2 {[%clk 0:02:09.7]}
20... Ne4+ {[%clk 0:00:46.1]} 21. Kc1 {[%clk 0:02:07.1]} 21... Qd5 {[%clk
0:00:18.4]} 22. Qa7+ {[%clk 0:02:01.9]} 22... Kc8 {[%clk 0:00:19.3]} 23. Qa8+
{[%clk 0:02:03.3]} 23... Kd7 {[%clk 0:00:20.1]} 24. Qxb7+ {[%clk 0:01:56.2]}
24... Ke6 {[%clk 0:00:20.2]} 25. Qc8+ {[%clk 0:01:56.9]} 25... Qd7 {[%clk
0:00:20.3]} 26. d5+ {[%clk 0:01:56.8]} 26... cxd5 {[%clk 0:00:19.7]} 27. Qxd7+
{[%clk 0:01:56.5]} 27... Kxd7 {[%clk 0:00:20.4]} 28. Bxe3 {[%clk 0:01:58.4]}
28... Nxe3 {[%clk 0:00:20.8]} 29. b4 {[%clk 0:01:57.2]} 29... Nxg2 {[%clk
0:00:19.8]} 30. Ra2 {[%clk 0:01:57.7]} 30... Nf4 {[%clk 0:00:17.7]} 31. Rd1
{[%clk 0:01:57.5]} 31... Kc6 {[%clk 0:00:16.4]} 32. Rc2+ {[%clk 0:01:58.1]}
32... Kb5 {[%clk 0:00:14.4]} 33. Kb2 {[%clk 0:01:57]} 33... Bd6 {[%clk
0:00:12.5]} 34. Kb3 {[%clk 0:01:56]} 34... Ra8 {[%clk 0:00:11.7]} 35. a4+ {[%clk
0:01:57.9]} 35... Kb6 {[%clk 0:00:11.8]} 36. Rdc1 {[%clk 0:01:52.9]} 36... Nd3
{[%clk 0:00:08.4]} 37. Rc6+ {[%clk 0:01:51.9]} 37... Kb7 {[%clk 0:00:05.8]} 38.
R1c2 {[%clk 0:01:52.1]} 38... Bxb4 {[%clk 0:00:01.8]} 39. Rc7+ {[%clk
0:01:23.5]} 39... Kb6 {[%clk 0:00:02.9]} 40. R2c6+ {[%clk 0:01:23.2]} 40... Ka5
{[%clk 0:00:03.6]} 41. Rxf7 {[%clk 0:01:20.7]} 41... Nec5+ {[%clk 0:00:03.1]}
42. Kc2 {[%clk 0:01:20.3]} 42... Kxa4 {[%clk 0:00:03.4]} 43. Rxg7 {[%clk
0:01:20]} 43... Kb5 {[%clk 0:00:03.4]} 44. Rxc5+ {[%clk 0:01:08.9]} 44... Kxc5
{[%clk 0:00:02.7]} 45. Kxd3 {[%clk 0:01:09.6]} 45... Ra3+ {[%clk 0:00:01.8]} 46.
Kc2 {[%clk 0:00:57.9]} 46... Ra2+ {[%clk 0:00:03.7]} 47. Kb3 {[%clk 0:00:59.7]}
47... Rxh2 {[%clk 0:00:04.3]} 48. Rc7+ {[%clk 0:01:00.4]} 48... Kd4 {[%clk
0:00:04.7]} 49. Kxb4 {[%clk 0:01:00.6]} 49... h5 {[%clk 0:00:01.7]} 50. Kb5
{[%clk 0:00:48.4]} 50... h4 {[%clk 0:00:02.2]} 51. Kc6 {[%clk 0:00:46.8]} 51...
Rc2+ {[%clk 0:00:03]} 52. Kd6 {[%clk 0:00:48.2]} 52... Rxc7 {[%clk 0:00:04.8]}
53. Kxc7 {[%clk 0:00:50.1]} 53... h3 {[%clk 0:00:06.5]} 54. Kd7 {[%clk 0:00:52]}
54... h2 {[%clk 0:00:08]} 55. Kd6 {[%clk 0:00:53.9]} 55... h1=Q {[%clk
0:00:08.8]} 56. Kc7 {[%clk 0:00:55.8]} 56... Qh6 {[%clk 0:00:09.1]} 57. Kd8
{[%clk 0:00:57.7]} 57... Kc5 {[%clk 0:00:09.1]} 58. Kc8 {[%clk 0:00:59.6]} 58...
Kc6 {[%clk 0:00:08.3]} 59. Kd8 {[%clk 0:01:01.5]} 59... Qh7 {[%clk 0:00:08]} 60.
Kc8 {[%clk 0:01:03.4]} 60... Qh8# {[%clk 0:00:08.1]} 0-1

[Event "*** Titled Tuesday Blitz"]
[Site "Chess.com"]
[Date "2019.02.05"]
[Round "5"]
[White "BogdanDeac"]
[Black "IMRosen"]
[Result "1/2-1/2"]
[WhiteElo "2732"]
[BlackElo "2522"]
[TimeControl "180+2"]
[EndTime "14:08:02 PST"]
[Termination "Game drawn by repetition"]

1. e4 {[%clk 0:03:01.4]} 1... e5 {[%clk 0:02:58]} 2. Nf3 {[%clk 0:02:52.6]} 2...
Nf6 {[%clk 0:02:59.2]} 3. Nxe5 {[%clk 0:02:53]} 3... Nc6 {[%clk 0:03:00.8]} 4.
Nxc6 {[%clk 0:02:53.3]} 4... dxc6 {[%clk 0:03:02.7]} 5. d3 {[%clk 0:02:53.5]}
5... Bc5 {[%clk 0:03:04]} 6. Be2 {[%clk 0:02:54.2]} 6... h5 {[%clk 0:03:04.8]}
7. h3 {[%clk 0:02:49]} 7... Qd4 {[%clk 0:02:52.2]} 8. Be3 {[%clk 0:02:34.7]}
8... Qxb2 {[%clk 0:02:49.2]} 9. Nd2 {[%clk 0:02:34.7]} 9... Bxe3 {[%clk
0:02:46.7]} 10. fxe3 {[%clk 0:02:35.1]} 10... Qe5 {[%clk 0:02:48.4]} 11. Kf2
{[%clk 0:02:33.3]} 11... c5 {[%clk 0:02:21.5]} 12. Nf3 {[%clk 0:02:33.1]} 12...
Qe7 {[%clk 0:02:21.2]} 13. e5 {[%clk 0:02:25.7]} 13... Nd5 {[%clk 0:02:19.8]}
14. Qd2 {[%clk 0:02:25.6]} 14... Bd7 {[%clk 0:02:11.5]} 15. a4 {[%clk
0:02:23.9]} 15... a5 {[%clk 0:02:08.6]} 16. e4 {[%clk 0:02:09.9]} 16... Nb4
{[%clk 0:02:03.6]} 17. c3 {[%clk 0:02:09]} 17... Nc6 {[%clk 0:02:02.8]} 18. d4
{[%clk 0:02:09.1]} 18... cxd4 {[%clk 0:02:01.1]} 19. cxd4 {[%clk 0:02:09.5]}
19... f6 {[%clk 0:01:33]} 20. exf6 {[%clk 0:02:05.2]} 20... gxf6 {[%clk
0:01:34.9]} 21. Qc3 {[%clk 0:02:05.6]} 21... Qb4 {[%clk 0:01:30.5]} 22. Qe3
{[%clk 0:02:04.2]} 22... Qe7 {[%clk 0:01:08.2]} 23. Rhc1 {[%clk 0:01:54.7]}
23... f5 {[%clk 0:00:49.6]} 24. d5 {[%clk 0:01:54.5]} 24... Ne5 {[%clk
0:00:21.6]} 25. Rxc7 {[%clk 0:01:52.8]} 25... fxe4 {[%clk 0:00:23.3]} 26. Nxe5
{[%clk 0:01:22.2]} 26... Qxe5 {[%clk 0:00:24.9]} 27. Rac1 {[%clk 0:01:22.6]}
27... O-O+ {[%clk 0:00:17.6]} 28. Kg1 {[%clk 0:01:22.1]} 28... Rf7 {[%clk
0:00:15.1]} 29. Rxb7 {[%clk 0:01:20]} 29... Raf8 {[%clk 0:00:04.2]} 30. d6
{[%clk 0:01:06.3]} 30... Be6 {[%clk 0:00:02.8]} 31. Rb5 {[%clk 0:00:56.7]} 31...
Qf6 {[%clk 0:00:02.7]} 32. Rxh5 {[%clk 0:00:41.3]} 32... Rg7 {[%clk 0:00:04.2]}
33. Rf1 {[%clk 0:00:41.5]} 33... Qd8 {[%clk 0:00:04.6]} 34. Rxf8+ {[%clk
0:00:32.1]} 34... Qxf8 {[%clk 0:00:06.5]} 35. Rh8+ {[%clk 0:00:19.9]} 35... Kxh8
{[%clk 0:00:06.7]} 36. Qh6+ {[%clk 0:00:21.3]} 36... Kg8 {[%clk 0:00:05.5]} 37.
Qxe6+ {[%clk 0:00:22.8]} 37... Qf7 {[%clk 0:00:05.4]} 38. Qc8+ {[%clk
0:00:13.8]} 38... Kh7 {[%clk 0:00:04.7]} 39. d7 {[%clk 0:00:14.9]} 39... Qxd7
{[%clk 0:00:05.3]} 40. Qc4 {[%clk 0:00:14.2]} 40... Qa7+ {[%clk 0:00:05.2]} 41.
Kh1 {[%clk 0:00:14.2]} 41... Qe7 {[%clk 0:00:07.1]} 42. Qd5 {[%clk 0:00:14.6]}
42... Rg5 {[%clk 0:00:07.6]} 43. Qd4 {[%clk 0:00:14.8]} 43... Re5 {[%clk
0:00:08.1]} 44. g4 {[%clk 0:00:13.9]} 44... Qc5 {[%clk 0:00:07.9]} 45. Qd7+
{[%clk 0:00:14.2]} 45... Re7 {[%clk 0:00:08.9]} 46. Qd8 {[%clk 0:00:15.2]} 46...
Qc1+ {[%clk 0:00:08.9]} 47. Kg2 {[%clk 0:00:15.8]} 47... Qc5 {[%clk 0:00:09.1]}
48. h4 {[%clk 0:00:15.3]} 48... Qe5 {[%clk 0:00:06.8]} 49. h5 {[%clk 0:00:15.9]}
49... Qg5 {[%clk 0:00:06.3]} 50. Qd6 {[%clk 0:00:14.9]} 50... Rf7 {[%clk
0:00:05.8]} 51. Qe6 {[%clk 0:00:06.1]} 51... Re7 {[%clk 0:00:06.3]} 52. Qd6
{[%clk 0:00:06.6]} 52... Rg7 {[%clk 0:00:05]} 53. Qe6 {[%clk 0:00:07.1]} 53...
Re7 {[%clk 0:00:05.2]} 54. Qd6 {[%clk 0:00:07.9]} 1/2-1/2

[Event "*** Titled Tuesday Blitz"]
[Site "Chess.com"]
[Date "2019.02.05"]
[Round "5"]
[White "Arystanner"]
[Black "Pilopa"]
[Result "0-1"]
[WhiteElo "2734"]
[BlackElo "2485"]
[TimeControl "180+2"]
[EndTime "14:08:02 PST"]
[Termination "Pilopa won by checkmate"]

1. e4 {[%clk 0:03:01.9]} 1... Nc6 {[%clk 0:02:59.5]} 2. Nf3 {[%clk 0:03:03]}
2... d6 {[%clk 0:03:00.3]} 3. h3 {[%clk 0:03:04.4]} 3... Nf6 {[%clk 0:03:01.4]}
4. Nc3 {[%clk 0:03:04.5]} 4... g6 {[%clk 0:03:01.6]} 5. d4 {[%clk 0:03:05.7]}
5... Bg7 {[%clk 0:03:01.8]} 6. Be3 {[%clk 0:03:05.5]} 6... O-O {[%clk
0:03:01.1]} 7. Qd2 {[%clk 0:03:06.1]} 7... e5 {[%clk 0:02:58.9]} 8. d5 {[%clk
0:03:05.8]} 8... Ne7 {[%clk 0:02:57.3]} 9. Bh6 {[%clk 0:03:05.7]} 9... c6 {[%clk
0:02:57.3]} 10. dxc6 {[%clk 0:03:03]} 10... bxc6 {[%clk 0:02:58.4]} 11. O-O-O
{[%clk 0:03:03.6]} 11... d5 {[%clk 0:02:10]} 12. Bxg7 {[%clk 0:03:01.1]} 12...
Kxg7 {[%clk 0:02:11.9]} 13. Nxe5 {[%clk 0:02:55.6]} 13... Rb8 {[%clk 0:02:10.7]}
14. Qd4 {[%clk 0:02:45.3]} 14... Qa5 {[%clk 0:01:52.6]} 15. a3 {[%clk
0:02:23.5]} 15... c5 {[%clk 0:01:49.9]} 16. Qd2 {[%clk 0:02:20.6]} 16... d4
{[%clk 0:01:43.3]} 17. Nb1 {[%clk 0:02:21.5]} 17... Qc7 {[%clk 0:01:33.8]} 18.
f4 {[%clk 0:02:07.1]} 18... Nxe4 {[%clk 0:01:34.1]} 19. Qe1 {[%clk 0:02:08]}
19... Nf6 {[%clk 0:01:10.5]} 20. g4 {[%clk 0:02:04.2]} 20... Ned5 {[%clk
0:01:11.1]} 21. Qg3 {[%clk 0:01:51.9]} 21... Ne3 {[%clk 0:00:59.5]} 22. Re1
{[%clk 0:01:43.1]} 22... Qb7 {[%clk 0:01:00.5]} 23. Bd3 {[%clk 0:01:10.3]} 23...
Qxb2+ {[%clk 0:00:58]} 24. Kd2 {[%clk 0:01:11.6]} 24... c4 {[%clk 0:00:46.4]}
25. g5 {[%clk 0:00:53]} 25... Nh5 {[%clk 0:00:33]} 26. Qf2 {[%clk 0:00:45.3]}
26... cxd3 {[%clk 0:00:33.8]} 27. Kxd3 {[%clk 0:00:44.4]} 27... Bf5+ {[%clk
0:00:33]} 28. Ke2 {[%clk 0:00:43.7]} 28... Qxc2+ {[%clk 0:00:32.2]} 29. Nd2
{[%clk 0:00:45.1]} 29... Rb2 {[%clk 0:00:26.4]} 30. Rd1 {[%clk 0:00:45.4]} 30...
Nd5 {[%clk 0:00:19.1]} 31. Qxd4 {[%clk 0:00:45.4]} 31... Nhxf4+ {[%clk
0:00:19.2]} 32. Kf2 {[%clk 0:00:42.8]} 32... Kg8 {[%clk 0:00:17.9]} 33. Ng4
{[%clk 0:00:31]} 33... Bxg4 {[%clk 0:00:17.2]} 34. hxg4 {[%clk 0:00:32.9]} 34...
Qc3 {[%clk 0:00:18]} 35. Qxc3 {[%clk 0:00:23]} 35... Nxc3 {[%clk 0:00:19.9]} 36.
Kf3 {[%clk 0:00:24.2]} 36... Nxd1 {[%clk 0:00:20.6]} 37. Ne4 {[%clk 0:00:21.7]}
37... Nd5 {[%clk 0:00:11.4]} 38. Rxd1 {[%clk 0:00:21.7]} 38... Rb3+ {[%clk
0:00:12.5]} 39. Kf2 {[%clk 0:00:22.1]} 39... Nf4 {[%clk 0:00:13]} 40. Rh1 {[%clk
0:00:19]} 40... Rh3 {[%clk 0:00:14]} 41. Rb1 {[%clk 0:00:18.8]} 41... Rd8 {[%clk
0:00:14.7]} 42. Rb7 {[%clk 0:00:19.2]} 42... Nd5 {[%clk 0:00:13.2]} 43. Rxa7
{[%clk 0:00:19.2]} 43... Re3 {[%clk 0:00:14.2]} 44. Nc5 {[%clk 0:00:18.6]} 44...
Re7 {[%clk 0:00:13.6]} 45. Ra5 {[%clk 0:00:17.3]} 45... Re5 {[%clk 0:00:13.9]}
46. Nd3 {[%clk 0:00:15.6]} 46... Rxg5 {[%clk 0:00:14.5]} 47. Kf3 {[%clk
0:00:17.1]} 47... h5 {[%clk 0:00:13.3]} 48. gxh5 {[%clk 0:00:16.4]} 48... Rxh5
{[%clk 0:00:15.2]} 49. Ra7 {[%clk 0:00:17.7]} 49... Rh3+ {[%clk 0:00:16]} 50.
Ke2 {[%clk 0:00:18.4]} 50... Re8+ {[%clk 0:00:17.5]} 51. Kf2 {[%clk 0:00:19.7]}
51... Rxd3 {[%clk 0:00:17.5]} 52. a4 {[%clk 0:00:21.6]} 52... Rc8 {[%clk
0:00:16.6]} 53. Rb7 {[%clk 0:00:19.9]} 53... Rc2+ {[%clk 0:00:16.4]} 54. Ke1
{[%clk 0:00:21.8]} 54... Rh3 {[%clk 0:00:13.8]} 55. Kd1 {[%clk 0:00:21.3]} 55...
Ne3+ {[%clk 0:00:12.7]} 56. Ke1 {[%clk 0:00:22.6]} 56... Rh1# {[%clk 0:00:14.3]}
0-1

[Event "*** Titled Tuesday Blitz"]
[Site "Chess.com"]
[Date "2019.02.05"]
[Round "5"]
[White "gmjlh"]
[Black "robbykevlishvili"]
[Result "1-0"]
[WhiteElo "2713"]
[BlackElo "2747"]
[TimeControl "180+2"]
[EndTime "14:08:11 PST"]
[Termination "gmjlh won by resignation"]

1. d4 {[%clk 0:03:01.9]} 1... d5 {[%clk 0:02:50.9]} 2. c4 {[%clk 0:03:02]} 2...
c6 {[%clk 0:02:50]} 3. Nf3 {[%clk 0:03:02.3]} 3... Nf6 {[%clk 0:02:49.3]} 4. e3
{[%clk 0:03:03]} 4... Bg4 {[%clk 0:02:48.3]} 5. Nc3 {[%clk 0:02:59.3]} 5... e6
{[%clk 0:02:49.3]} 6. Qb3 {[%clk 0:02:59.3]} 6... Qb6 {[%clk 0:02:49.7]} 7. Nh4
{[%clk 0:02:58.1]} 7... Bh5 {[%clk 0:02:50.2]} 8. h3 {[%clk 0:02:58.9]} 8... Na6
{[%clk 0:02:51.1]} 9. g4 {[%clk 0:02:44.7]} 9... Bg6 {[%clk 0:02:51.3]} 10. Nxg6
{[%clk 0:02:45.7]} 10... hxg6 {[%clk 0:02:53.2]} 11. Bg2 {[%clk 0:02:47]} 11...
dxc4 {[%clk 0:02:43.2]} 12. Qxc4 {[%clk 0:02:48.9]} 12... Nb4 {[%clk 0:02:43.3]}
13. O-O {[%clk 0:02:42.9]} 13... Be7 {[%clk 0:02:40.3]} 14. Rd1 {[%clk 0:02:40]}
14... O-O {[%clk 0:02:37.9]} 15. e4 {[%clk 0:02:27.3]} 15... Rad8 {[%clk
0:02:37.3]} 16. a3 {[%clk 0:02:24.6]} 16... Na6 {[%clk 0:01:57.8]} 17. b4 {[%clk
0:02:18.5]} 17... Qc7 {[%clk 0:01:49.6]} 18. Be3 {[%clk 0:02:12.2]} 18... Qb8
{[%clk 0:01:50.6]} 19. Rac1 {[%clk 0:02:09.3]} 19... Nc7 {[%clk 0:01:51.6]} 20.
Bf4 {[%clk 0:02:09.4]} 20... Qc8 {[%clk 0:01:44.9]} 21. a4 {[%clk 0:02:10.4]}
21... a6 {[%clk 0:01:44.9]} 22. b5 {[%clk 0:01:58.2]} 22... axb5 {[%clk
0:01:37.5]} 23. axb5 {[%clk 0:01:58.7]} 23... Nxb5 {[%clk 0:01:35.8]} 24. Nxb5
{[%clk 0:01:59.3]} 24... cxb5 {[%clk 0:01:37.7]} 25. Qxb5 {[%clk 0:01:59]} 25...
Qd7 {[%clk 0:01:38.7]} 26. Rb1 {[%clk 0:01:44.8]} 26... Qxb5 {[%clk 0:01:27.9]}
27. Rxb5 {[%clk 0:01:46.7]} 27... Rd7 {[%clk 0:01:29.4]} 28. e5 {[%clk
0:01:43.3]} 28... Nd5 {[%clk 0:01:30.4]} 29. Bxd5 {[%clk 0:01:44.1]} 29... exd5
{[%clk 0:01:32.3]} 30. Rdb1 {[%clk 0:01:44]} 30... f5 {[%clk 0:01:02.1]} 31. e6
{[%clk 0:01:44.4]} 31... Rdd8 {[%clk 0:01:02.8]} 32. Rxb7 {[%clk 0:01:45.3]}
32... Rde8 {[%clk 0:00:57.3]} 33. g5 {[%clk 0:01:42]} 33... Bd8 {[%clk
0:00:46.5]} 34. Be5 {[%clk 0:01:39.5]} 34... Re7 {[%clk 0:00:44.1]} 35. Bd6
{[%clk 0:01:00]} 35... Rxb7 {[%clk 0:00:43.4]} 36. Rxb7 {[%clk 0:00:58.8]} 36...
Re8 {[%clk 0:00:45]} 37. Rb8 {[%clk 0:00:53.7]} 37... Kh7 {[%clk 0:00:29.2]} 38.
Be5 {[%clk 0:00:45.7]} 38... Rg8 {[%clk 0:00:23.1]} 39. h4 {[%clk 0:00:38.9]}
39... Be7 {[%clk 0:00:23.6]} 40. Rb5 {[%clk 0:00:17]} 40... Rd8 {[%clk
0:00:20.9]} 41. Kg2 {[%clk 0:00:12.8]} 41... Kg8 {[%clk 0:00:21.6]} 42. Rb7
{[%clk 0:00:11.1]} 42... Re8 {[%clk 0:00:21.2]} 43. Rd7 {[%clk 0:00:11.5]} 43...
Bf8 {[%clk 0:00:22.2]} 44. Bd6 {[%clk 0:00:09.3]} 44... Rxe6 {[%clk 0:00:21.8]}
45. Be5 {[%clk 0:00:08.5]} 45... Re8 {[%clk 0:00:21.5]} 46. Rxd5 {[%clk
0:00:09.4]} 46... Kf7 {[%clk 0:00:21.3]} 47. Rd7+ {[%clk 0:00:10.5]} 47... Ke6
{[%clk 0:00:22.4]} 48. Ra7 {[%clk 0:00:11.1]} 48... Kd5 {[%clk 0:00:23.5]} 49.
Bxg7 {[%clk 0:00:11.1]} 49... Bd6 {[%clk 0:00:18.8]} 50. Ra5+ {[%clk 0:00:11.8]}
50... Ke4 {[%clk 0:00:19.3]} 51. Ra6 {[%clk 0:00:11.9]} 51... Bc7 {[%clk
0:00:20]} 52. Rxg6 {[%clk 0:00:10.9]} 52... f4 {[%clk 0:00:21.5]} 53. Be5 {[%clk
0:00:10.6]} 53... Ba5 {[%clk 0:00:19.3]} 54. Rf6 {[%clk 0:00:11.6]} 54... Bd2
{[%clk 0:00:19.7]} 55. f3+ {[%clk 0:00:12.7]} 55... Kd3 {[%clk 0:00:19]} 56.
Bxf4 {[%clk 0:00:13.7]} 56... Bc3 {[%clk 0:00:20.4]} 57. Be5 {[%clk 0:00:14.1]}
57... Ra8 {[%clk 0:00:20.3]} 58. Kg3 {[%clk 0:00:14.3]} 58... Be1+ {[%clk
0:00:21.5]} 59. Kg4 {[%clk 0:00:15.3]} 59... Ra2 {[%clk 0:00:22.7]} 60. h5
{[%clk 0:00:16.3]} 60... Rg2+ {[%clk 0:00:23.6]} 61. Kf5 {[%clk 0:00:17.6]}
61... Bh4 {[%clk 0:00:24]} 62. f4 {[%clk 0:00:18.8]} 62... Rh2 {[%clk
0:00:25.3]} 63. h6 {[%clk 0:00:20.1]} 63... Bf2 {[%clk 0:00:26.1]} 64. d5 {[%clk
0:00:21.2]} 64... Kc4 {[%clk 0:00:24.9]} 65. d6 {[%clk 0:00:22.3]} 65... Bb6
{[%clk 0:00:25.3]} 66. d7 {[%clk 0:00:23.3]} 1-0